bitfinex/quotes_ETHUSD_20220119
["timestamp","ask_amount","ask_price","bid_price","bid_amount"]
[1642636107496,4.89938965,3100.4,3099.8,0.09114325]
[1642636107696,4.89938965,3100.4,3099.8,0.09398537]
[1642636107907,2.54938965,3100.4,3099.8,0.09398537]
[1642636109339,0.19938965,3100.4,3099.8,0.09398537]
[1642636109638,4.22360022,3100.5,3099.8,0.09398537]
[1642636109847,3.23430511,3100.4,3099.8,0.09398537]
[1642636110138,4.04086361,3100.4,3099.8,0.09398537]
[1642636110339,0.3,3100.3,3099.8,0.09398537]
[1642636110542,3.26848293,3100.2,3099.8,0.09398537]
[1642636110837,1.10655,3100.3,3099.8,0.09398537]
[1642636110838,0.3,3100.1,3099.8,0.09398537]
[1642636111640,1.40655,3100.3,3099.8,0.09398537]
[1642636112147,3.15384949,3100.2,3099.8,0.09398537]
[1642636112548,3.15384949,3100.2,3098.2,0.03]
[1642636112549,0.2819561,3099.4,3098.2,0.03]
[1642636112758,1.1054561,3099.4,3098.2,0.03]
[1642636113019,0.80686,3099.2,3098.3,0.00852635]
[1642636113223,0.3,3099.1,3098.3,0.00852635]
[1642636113421,0.6,3099.1,3098.3,0.00852635]
[1642636114020,1.4068774,3099.1,3098.3,0.00852635]
[1642636114223,1.44049656,3099.1,3098.3,0.00852635]
[1642636114622,1.4068774,3099.1,3098.3,0.00852635]
[1642636115122,0.3,3099.1,3098.3,0.00852635]
[1642636115520,0.31221586,3099.3,3098.3,0.00852635]
[1642636115726,0.31221586,3099.3,3098.4,1.23908363]
[1642636115921,0.01221586,3099.3,3098.4,1.23908363]
[1642636116121,0.01221586,3099.3,3098.7,1.43125264]
[1642636116524,0.01221586,3099.3,3098.2,0.03]
[1642636116525,2.35,3099.0,3098.2,0.03]
[1642636116762,0.0120676,3098.6,3098.2,0.03]
[1642636116948,0.4740676,3098.6,3098.3,0.00284211]
[1642636117949,1.2809976,3098.6,3098.3,0.00284211]
[1642636118149,1.5809976,3098.6,3098.3,0.00284211]
[1642636118948,1.8809976,3098.6,3098.3,0.00284211]
[1642636119249,1.5809976,3098.6,3098.3,0.00284211]
[1642636119450,1.78985435,3098.6,3098.3,0.00284211]
[1642636119751,0.462,3098.6,3098.3,0.00284211]
[1642636120599,0.462,3098.6,3097.4,0.01]
[1642636120600,0.16058,3098.4,3097.4,0.01]
[1642636120804,0.02793741,3098.4,3097.4,0.01]
[1642636121004,0.76493741,3098.4,3097.5,0.00454739]
[1642636121199,1.06493741,3098.4,3097.5,0.00454739]
[1642636121401,0.462,3098.3,3097.5,0.00454739]
[1642636121701,0.462,3098.3,3097.4,0.01]
[1642636121702,2.35,3098.1,3097.4,0.01]
[1642636121902,0.63549694,3098.0,3097.4,0.01]
[1642636122102,2.39218906,3098.0,3097.4,0.01]
[1642636122302,0.80947369,3097.9,3097.6,0.00288354]
[1642636122504,1.57147369,3097.9,3097.6,0.00288354]
[1642636122702,4.7,3097.7,3097.0,1.34054229]
[1642636122909,5.0,3097.7,3097.0,1.34054229]
[1642636123102,5.0,3097.7,3097.1,0.0022737]
[1642636124339,8.37717023,3097.7,3097.1,0.0022737]
[1642636124541,5.0,3097.7,3097.0,0.00284212]
[1642636124739,1.61453,3097.5,3097.0,0.00284212]
[1642636125342,3.2290747,3097.5,3097.0,0.00284212]
[1642636125539,0.3,3097.4,3097.0,0.00284212]
[1642636125942,1.61453,3097.5,3097.0,0.00284212]
[1642636125943,0.3,3097.5,3097.0,0.00284212]
[1642636126345,5.0,3097.7,3097.0,0.00284212]
[1642636126946,5.429,3097.7,3097.0,0.00284212]
[1642636127146,0.16058,3097.6,3097.0,0.00284212]
[1642636127345,5.3,3097.7,3097.0,0.00284212]
[1642636127346,3.2,3097.5,3097.0,0.00284212]
[1642636127548,3.5,3097.5,3097.0,0.00284212]
[1642636127995,0.80724,3097.4,3096.8,0.00397897]
[1642636128203,3.46908676,3097.3,3096.8,0.00397897]
[1642636128402,3.20737484,3097.2,3096.8,0.00397897]
[1642636128600,2.74537484,3097.1,3096.8,0.00397897]
[1642636128804,2.74553519,3097.0,3096.8,0.00397897]
[1642636128999,0.462,3097.1,3096.8,0.00397897]
[1642636129900,1.26932,3097.1,3096.8,0.00397897]
[1642636130101,5.66978017,3097.1,3096.8,0.00397897]
[1642636130502,2.7456074,3097.0,3096.8,0.00397897]
[1642636130703,2.35,3096.9,3096.8,0.00397897]
[1642636131103,2.65,3096.9,3096.8,0.00397897]
[1642636131502,5.0,3096.9,3096.8,0.00397897]
[1642636131764,11.22163528,3096.9,3096.8,0.00397897]
[1642636131953,11.22164882,3096.9,3096.8,0.00397897]
[1642636132153,11.52160682,3096.9,3096.8,0.00397897]
[1642636132455,11.52160682,3096.9,3096.8,7.897e-05]
[1642636132456,9.75624713,3096.9,3096.8,7.897e-05]
[1642636132655,0.02015793,3096.6,3096.4,0.01]
[1642636132854,0.0324346,3096.6,3096.4,0.01]
[1642636133056,0.3324346,3096.6,3096.5,0.00170527]
[1642636133255,0.6324346,3096.6,3096.5,0.00170527]
[1642636133455,5.88890559,3096.6,3096.5,0.00170527]
[1642636133666,7.35090559,3096.6,3096.5,0.00170527]
[1642636134056,4.7,3096.5,3096.4,0.01]
[1642636134259,7.90789099,3096.5,3096.4,0.01]
[1642636134558,24.62767,3096.3,3095.1,0.04418802]
[1642636134859,24.62767,3096.3,3095.6,1.13387128]
[1642636134860,0.5912,3096.2,3095.6,1.13387128]
[1642636135058,0.1292,3096.2,3095.6,1.13387128]
[1642636135255,0.1292,3096.2,3095.7,0.00454738]
[1642636136016,0.1292,3096.2,3095.8,1.51011102]
[1642636136420,0.1292,3096.2,3095.9,0.00341054]
[1642636137924,0.05994845,3096.1,3095.9,0.00341054]
[1642636138322,3.3292,3096.2,3096.0,1.33500075]
[1642636138723,3.3292,3096.2,3096.1,0.00227369]
[1642636138932,0.02015793,3096.6,3096.2,2.35]
[1642636139352,0.02015793,3096.6,3096.3,0.13023684]
[1642636139953,0.02015793,3096.6,3096.4,1.36199818]
[1642636140255,0.02015793,3096.6,3096.5,4.4229227]
[1642636140655,0.02015793,3096.6,3096.5,3.6158827]
[1642636141054,0.02015793,3096.6,3096.5,1.2658827]
[1642636146104,0.02015793,3096.6,3096.4,1.36199818]
[1642636146307,0.02015793,3096.6,3096.3,0.00113684]
[1642636146509,2.51058,3096.4,3096.3,0.00113684]
[1642636146761,2.35,3096.4,3095.9,0.00341054]
[1642636146957,3.27435077,3096.3,3095.9,0.00341054]
[1642636147157,2.95,3096.4,3095.9,0.00341054]
[1642636147358,0.80755,3096.3,3095.9,0.00341054]
[1642636147558,1.6151108,3096.2,3095.9,0.00341054]
[1642636147761,2.35,3096.0,3095.9,0.00341054]
[1642636148158,2.95,3096.0,3095.9,0.00341054]
[1642636148359,5.25,3096.0,3095.9,0.00341054]
[1642636148560,8.77191237,3096.0,3095.9,0.00341054]
[1642636148759,8.47191237,3096.0,3095.9,0.00341054]
[1642636148961,8.47191237,3096.0,3095.6,0.03]
[1642636148962,0.8076121,3095.9,3095.7,0.00454738]
[1642636149161,3.21064342,3095.8,3095.7,0.00454738]
[1642636149367,2.35,3095.8,3095.7,0.00454738]
[1642636150364,4.7,3095.8,3095.7,0.00454738]
[1642636150813,5.0,3095.8,3095.7,0.00454738]
[1642636151615,5.0,3095.8,3095.3,0.01]
[1642636151616,40.2783589,3095.8,3095.3,0.01]
[1642636151814,0.8559975,3095.6,3095.3,0.01]
[1642636152018,2.812,3095.5,3095.4,0.00170527]
[1642636152416,5.112,3095.5,3095.4,0.00170527]
[1642636152816,2.762,3095.5,3095.4,0.00170527]
[1642636153624,4.7,3095.4,3095.3,0.01]
[1642636153917,6.762,3095.4,3095.3,0.01]
[1642636154117,5.462,3095.4,3095.3,0.01]
[1642636154368,4.7,3095.2,3095.1,0.01]
[1642636154576,4.7,3095.1,3095.0,0.0121838]
[1642636154769,4.7,3095.1,3093.0,2.3121307]
[1642636154770,1.61615,3094.8,3094.0,0.1392]
[1642636154967,1.61615,3094.8,3093.1,2.4268593]
[1642636154968,0.01238549,3094.4,3093.1,2.4268593]
[1642636155168,0.01238549,3094.4,3094.1,0.00738951]
[1642636155366,0.462,3094.5,3094.1,0.00738951]
[1642636155567,0.3,3094.6,3094.2,1.27254645]
[1642636155767,4.14762008,3094.7,3094.2,1.27254645]
[1642636155768,4.44762008,3094.7,3094.2,1.27254645]
[1642636155967,1.616196,3094.7,3094.3,0.00625266]
[1642636156168,0.8079283,3094.5,3094.3,0.00625266]
[1642636156767,0.462,3094.8,3094.3,0.00625266]
[1642636156969,0.13819473,3095.4,3094.3,0.00625266]
[1642636157569,0.8076549,3095.6,3095.5,1.53593838]
[1642636157999,3.15879174,3095.6,3095.5,1.53593838]
[1642636158199,5.50879174,3095.6,3095.5,1.53593838]
[1642636158502,0.55504212,3095.4,3095.3,1.5171607]
[1642636158700,0.55504212,3095.4,3094.3,0.00625266]
[1642636158906,0.8077189,3095.2,3094.3,0.00625266]
[1642636159104,0.8077189,3095.2,3094.2,0.00682109]
[1642636159305,0.8077189,3095.2,3094.3,0.00625266]
[1642636159508,0.8077189,3095.2,3095.0,1.54957404]
[1642636159907,0.8077189,3095.2,3095.1,0.00170527]
[1642636160410,0.55504212,3095.4,3095.1,2.81651928]
[1642636160809,0.55504212,3095.4,3095.2,0.00113685]
[1642636161209,0.55504212,3095.4,3095.1,0.00170527]
[1642636162261,0.55504212,3095.4,3095.1,2.78517049]
[1642636162661,0.55504212,3095.4,3095.0,3.79084058]
[1642636162662,0.55504212,3095.4,3095.3,3.20743]
[1642636164361,0.00113684,3095.6,3095.4,2.4]
[1642636165368,0.02015793,3096.6,3095.8,0.8072]
[1642636165615,0.02015793,3096.6,3095.9,1.31716371]
[1642636165816,0.00511581,3096.5,3096.0,1.38678403]
[1642636166214,0.02015793,3096.6,3096.0,1.38678403]
[1642636166215,0.00454739,3096.4,3096.0,1.38678403]
[1642636166419,0.00454739,3096.4,3096.0,3.00118403]
[1642636166623,0.00397897,3096.3,3096.1,0.8072]
[1642636167121,0.02015793,3096.6,3096.1,0.8072]
[1642636167122,0.00341054,3096.2,3096.1,3.2072]
[1642636167327,0.00341054,3096.2,3096.0,3.00118403]
[1642636167328,0.00341054,3096.2,3096.0,1.38678403]
[1642636167729,0.00284212,3096.1,3096.0,1.38678403]
[1642636168327,0.00284212,3096.1,3095.3,0.03]
[1642636168526,2.83264812,3096.1,3095.3,0.03]
[1642636168728,2.83264812,3096.1,3094.1,3.0]
[1642636168729,0.01206541,3095.5,3093.9,0.80782]
[1642636168929,0.21274181,3095.4,3093.7,0.03]
[1642636169124,0.21274181,3095.4,3093.4,0.86910652]
[1642636169125,4.8,3094.7,3093.4,0.86910652]
[1642636169388,4.8,3094.7,3094.0,1.14473256]
[1642636169389,1.6158289,3094.6,3094.0,1.14473256]
[1642636169591,1.61923944,3094.6,3094.0,1.14473256]
[1642636169788,0.00284211,3094.5,3094.0,1.14473256]
[1642636170189,1.6158289,3094.6,3093.1,2.18846871]
[1642636170190,4.8,3094.3,3093.1,2.18846871]
[1642636170390,0.00443037,3094.2,3094.1,1.13184219]
[1642636170591,0.00227369,3094.2,3094.1,1.13184219]
[1642636171195,0.00044119,3094.2,3094.1,1.13184219]
[1642636171393,0.00044119,3094.2,3093.3,1.61574]
[1642636171794,0.00044119,3094.2,3093.4,0.00410619]
[1642636171993,0.00044119,3094.2,3093.7,0.80787]
[1642636172197,0.00044119,3094.2,3093.7,1.61556]
[1642636172392,0.00044119,3094.2,3093.8,0.0018325]
[1642636172599,0.00044119,3094.2,3093.8,1.5047182]
[1642636173023,0.00044119,3094.2,3093.9,0.00126408]
[1642636174116,0.00044119,3094.2,3093.9,0.80901408]
[1642636175318,0.00044119,3094.2,3094.0,18.82]
[1642636175517,1.147,3096.1,3094.6,0.80749]
[1642636175518,0.412,3096.0,3094.6,0.80749]
[1642636175817,0.42223163,3096.0,3094.6,0.80749]
[1642636176015,0.42223163,3096.0,3095.9,1.2284588]
[1642636178568,0.01023163,3096.0,3095.9,1.2284588]
[1642636181123,0.01023163,3096.0,3094.9,1.61458]
[1642636181317,0.02015793,3096.6,3094.8,4.8]
[1642636181318,0.80751,3096.1,3094.8,4.8]
[1642636181514,0.80751,3096.1,3095.0,0.00568424]
[1642636181714,0.80751,3096.1,3094.9,0.00625266]
[1642636182214,0.8075173,3095.9,3094.9,0.00625266]
[1642636182417,0.80757,3095.8,3095.2,1.23860378]
[1642636182823,0.80757,3095.8,3095.3,0.00397897]
[1642636183019,1.26957,3095.8,3095.3,0.00397897]
[1642636183218,2.28727,3095.8,3095.3,0.00397897]
[1642636183416,0.16058,3095.7,3094.8,0.00682109]
[1642636183620,0.62258,3095.6,3094.8,0.00682109]
[1642636183817,1.2698,3095.5,3094.8,0.00682109]
[1642636184018,1.2698,3095.5,3095.0,1.28662901]
[1642636184459,1.2698,3095.5,3095.1,0.00511581]
[1642636184660,0.8077822,3095.3,3095.1,0.00511581]
[1642636184860,1.6154822,3095.3,3095.1,0.00511581]
[1642636185260,1.6154822,3095.3,3094.8,0.00682109]
[1642636186662,0.80774,3095.2,3094.8,0.00682109]
[1642636186867,1.6154583,3095.2,3094.8,0.00682109]
[1642636187269,0.8077183,3095.2,3094.8,0.00682109]
[1642636187469,1.6154607,3095.4,3094.8,0.00682109]
[1642636187667,1.6154607,3095.4,3095.2,1.56171077]
[1642636187869,0.8076736,3095.3,3095.2,1.56171077]
[1642636189324,0.8076736,3095.3,3094.9,1.11972133]
[1642636189325,0.8076736,3095.3,3094.7,0.03]
[1642636189730,0.8076736,3095.3,3094.8,0.00682109]
[1642636190327,0.8076736,3095.3,3095.0,1.52784971]
[1642636190529,0.8076736,3095.3,3094.8,0.00682109]
[1642636190730,0.8076736,3095.3,3095.1,0.00511581]
[1642636191427,1.6154236,3095.3,3095.1,0.00511581]
[1642636193066,1.6154236,3095.3,3095.2,1.12175502]
[1642636193467,1.6154236,3095.3,3095.2,0.00454739]
[1642636193866,4.27806679,3095.3,3095.2,0.00454739]
[1642636194869,0.80776,3095.2,3094.9,0.00625266]
[1642636195267,0.8077822,3095.0,3094.1,0.01080005]
[1642636195533,1.6155822,3095.0,3094.1,0.01080005]
[1642636195922,1.07048319,3095.0,3094.1,0.01080005]
[1642636196119,1.07048319,3095.0,3094.2,0.73273935]
[1642636196520,4.02178668,3094.9,3094.3,0.0096632]
[1642636196724,0.8078309,3094.7,3094.3,0.0096632]
[1642636196926,1.6157409,3094.7,3094.3,0.0096632]
[1642636197125,1.87838409,3094.7,3094.3,0.0096632]
[1642636197526,2.68628409,3094.7,3094.3,0.0096632]
[1642636197726,0.26264319,3094.7,3093.9,0.0119369]
[1642636198126,0.26264319,3094.7,3093.9,1.61547]
[1642636198325,0.26264319,3094.7,3094.0,1.51757199]
[1642636198529,0.26264319,3094.7,3094.4,1.38255265]
[1642636198927,0.26264319,3094.7,3094.5,0.00852636]
[1642636200469,0.26264319,3094.7,3094.1,0.01080005]
[1642636200470,3.77479769,3094.7,3094.1,0.01080005]
[1642636200670,1.18864319,3094.7,3094.1,0.01080005]
[1642636200876,1.18864319,3094.7,3093.7,0.01307374]
[1642636201078,0.26264319,3094.7,3093.7,0.01307374]
[1642636201270,0.26264319,3094.7,3093.8,1.44675274]
[1642636201671,0.26264319,3094.7,3093.9,0.0119369]
[1642636201872,0.26264319,3094.7,3094.1,0.80774]
[1642636202275,0.26264319,3094.7,3094.2,0.01023163]
[1642636202573,0.26264319,3094.7,3094.3,1.28988502]
[1642636203050,0.26264319,3094.7,3094.4,1.1615928]
[1642636203229,0.26171107,3094.7,3094.4,1.1615928]
[1642636203430,0.26171107,3094.7,3094.5,0.00852636]
[1642636204734,1.06961107,3094.7,3094.4,0.00909478]
[1642636204935,1.06961107,3094.7,3093.7,0.01307374]
[1642636205135,0.26171107,3094.7,3093.9,0.80781]
[1642636205334,0.26171107,3094.7,3094.3,1.29546465]
[1642636205534,1.6155873,3095.0,3094.3,1.29546465]
[1642636205535,0.26171107,3094.6,3094.3,1.29546465]
[1642636205736,0.26171107,3094.6,3094.4,0.00909478]
[1642636206036,0.26171107,3094.7,3094.4,0.00909478]
[1642636206239,0.26171107,3094.6,3094.4,0.00909478]
[1642636206435,0.26171107,3094.7,3094.4,0.00909478]
[1642636206866,0.26171107,3094.6,3094.4,0.00909478]
[1642636207071,1.87739107,3094.7,3094.4,0.00909478]
[1642636207267,1.87739107,3094.7,3093.7,0.01307374]
[1642636207467,1.87739107,3094.7,3094.0,1.42083516]
[1642636207468,1.06958877,3094.6,3094.0,1.42083516]
[1642636207669,0.8078777,3094.6,3094.0,1.42083516]
[1642636207869,0.8078777,3094.6,3094.2,1.52025049]
[1642636208067,1.06958877,3094.6,3094.2,1.52025049]
[1642636208267,1.06958877,3094.6,3094.3,0.0096632]
[1642636208772,0.26171107,3094.6,3094.3,0.0096632]
[1642636209369,3.46171107,3094.6,3094.3,0.0096632]
[1642636209770,4.26955107,3094.6,3094.3,0.0096632]
[1642636210171,0.8079101,3094.5,3094.3,0.0096632]
[1642636210613,1.06962117,3094.5,3094.3,0.0096632]
[1642636210812,1.87752117,3094.5,3094.3,0.0096632]
[1642636211013,1.06961107,3094.5,3093.7,0.01307374]
[1642636211210,0.8079281,3094.3,3093.7,0.01307374]
[1642636211414,0.8079281,3094.3,3093.9,1.52633518]
[1642636211818,1.06963917,3094.3,3094.0,0.01136847]
[1642636212216,1.06963917,3094.3,3093.9,0.0119369]
[1642636212817,1.06963917,3094.3,3093.9,1.20182231]
[1642636213219,1.06963917,3094.3,3094.0,0.01136847]
[1642636214263,1.06963917,3094.3,3093.9,0.0119369]
[1642636214667,0.8080955,3094.1,3093.7,0.01307374]
[1642636215066,1.06980657,3094.1,3093.7,0.01307374]
[1642636215469,1.61616,3094.0,3093.7,0.01307374]
[1642636215869,1.87787107,3094.0,3093.7,0.01307374]
[1642636216071,0.8080488,3093.9,3093.7,0.01307374]
[1642636216673,1.06975987,3093.9,3093.7,0.01307374]
[1642636217472,3.49416987,3093.9,3093.7,0.01307374]
[1642636217874,2.68602987,3093.9,3093.7,0.01307374]
[1642636218636,3.49414987,3093.9,3093.7,0.01307374]
[1642636219036,2.66171107,3093.8,3093.7,0.01307374]
[1642636219240,2.4,3093.8,3093.7,0.01307374]
[1642636219537,2.66171107,3093.8,3093.7,0.01307374]
[1642636219936,0.26171107,3093.8,3093.7,0.01307374]
[1642636220636,0.22505683,3093.8,3093.7,0.01307374]
[1642636221038,3.43290615,3093.8,3093.7,0.01307374]
[1642636221238,3.4240817,3093.8,3093.7,0.01307374]
[1642636221875,6.113,3093.7,3093.1,1.69846871]
[1642636222073,6.113,3093.7,3092.8,0.01]
[1642636222074,0.01258006,3093.2,3092.8,0.01]
[1642636222271,0.01258006,3093.2,3092.6,0.0133576]
[1642636222272,0.01279959,3092.9,3092.6,0.0133576]
[1642636222472,2.4,3092.6,3092.2,0.01]
[1642636222673,2.4,3092.6,3092.0,0.01]
[1642636222674,4.8,3092.2,3092.0,0.0001]
[1642636222871,4.8,3092.2,3091.6,0.007]
[1642636222872,2.788,3092.1,3091.6,0.007]
[1642636223071,4.8,3092.0,3091.3,0.0001]
[1642636223271,0.80876,3091.8,3091.3,0.0001]
[1642636223570,0.80876,3091.8,3091.4,0.01307374]
[1642636223771,1.03381683,3091.8,3091.4,0.01307374]
[1642636224372,1.6174408,3091.7,3091.4,1.21721039]
[1642636224772,1.6174408,3091.7,3091.5,0.01250532]
[1642636224773,2.65128763,3091.7,3091.5,0.01250532]
[1642636225628,2.65128763,3091.7,3091.0,1.15934363]
[1642636225629,4.8,3091.6,3091.0,1.15934363]
[1642636225831,4.8,3091.6,3091.4,1.52588663]
[1642636225832,1.6176311,3091.5,3091.4,1.52588663]
[1642636226028,1.6176311,3091.5,3091.1,0.00227369]
[1642636226227,0.80883,3091.4,3091.1,0.00227369]
[1642636226432,0.80883,3091.4,3090.7,0.00454739]
[1642636226634,0.80883,3091.4,3090.2,1.5702579]
[1642636226635,0.01254084,3090.9,3090.2,1.5702579]
[1642636226835,0.80905,3090.7,3090.2,1.2202579]
[1642636227141,0.2375,3091.0,3090.0,2.284196]
[1642636227142,0.22846737,3091.3,3090.0,2.08686759]
[1642636227334,0.22846737,3091.3,3089.3,3.0]
[1642636227335,0.01243089,3090.2,3089.3,3.0]
[1642636227537,0.01243089,3090.2,3087.9,0.66964026]
[1642636227538,0.3171,3089.6,3088.4,1.61222633]
[1642636227741,0.3171,3089.6,3088.4,1.44356102]
[1642636227940,0.388,3090.1,3088.5,1.94341563]
[1642636228133,0.22505683,3089.6,3088.5,1.94341563]
[1642636228436,2.4517,3090.6,3088.6,18.8296632]
[1642636228437,0.22505683,3090.3,3088.6,18.8296632]
[1642636228632,0.22505683,3090.3,3089.9,1.11556646]
[1642636228836,0.00113685,3090.5,3089.9,0.89050963]
[1642636228837,0.00026454,3090.5,3089.9,0.89050963]
[1642636229034,0.00026454,3090.5,3090.0,1.46114228]
[1642636229275,0.00026454,3090.5,3090.0,1.46201459]
[1642636229478,0.00026454,3090.5,3090.1,0.00200916]
[1642636229680,0.00026454,3090.5,3090.1,2.7940288]
[1642636229877,0.00026454,3090.5,3090.2,0.01970953]
[1642636230077,0.00026454,3090.5,3090.2,0.00144073]
[1642636230274,0.00026454,3090.5,3090.3,0.00087231]
[1642636230474,0.00026454,3090.5,3089.3,0.00655655]
[1642636230875,0.00026454,3090.5,3090.4,3.93243786]
[1642636231074,0.00026454,3090.5,3089.4,2.78137259]
[1642636231276,0.00026454,3090.5,3089.4,1.16367259]
[1642636231480,0.00026454,3090.5,3089.5,0.0054197]
[1642636231881,2.45,3090.4,3089.4,1.11909229]
[1642636232078,0.00511581,3090.4,3090.1,1.47748073]
[1642636232382,3.78247241,3091.4,3090.1,1.47748073]
[1642636232383,0.00454739,3090.3,3090.1,1.47748073]
[1642636232781,2.86601,3091.4,3090.1,1.47748073]
[1642636232782,0.00397897,3090.2,3090.1,1.47748073]
[1642636233268,0.00397897,3090.2,3090.1,2.89799306]
[1642636234469,0.00397897,3090.2,3089.3,1.61774]
[1642636234672,0.00397897,3090.2,3088.8,3.6471]
[1642636234871,0.00341054,3090.1,3088.8,0.03]
[1642636235074,0.00341054,3090.1,3088.9,0.00341054]
[1642636235269,0.00284212,3090.0,3088.9,0.00341054]
[1642636235469,0.00284212,3090.0,3089.3,1.49190175]
[1642636235670,0.0022737,3089.9,3088.9,0.00341054]
[1642636235874,0.80922,3089.8,3088.9,0.00341054]
[1642636236070,6.86092527,3089.8,3088.2,0.30065655]
[1642636236270,0.00454739,3089.7,3088.0,0.80928]
[1642636236473,0.00454739,3089.7,3088.3,0.00341054]
[1642636236673,4.9,3089.8,3088.3,0.00341054]
[1642636236674,0.00397896,3089.6,3089.4,1.17139585]
[1642636236888,0.00397896,3089.6,3088.3,1.62166054]
[1642636236889,0.00397896,3089.6,3088.3,0.00341054]
[1642636237088,0.00341054,3089.5,3088.3,0.00341054]
[1642636237288,0.00341054,3089.5,3088.4,0.80917]
[1642636237490,2.3459,3090.3,3088.3,0.00341054]
[1642636237491,0.00284212,3089.4,3088.5,0.03]
[1642636237691,0.00284212,3089.4,3088.5,0.03227369]
[1642636237890,0.00227369,3089.3,3088.7,1.24337872]
[1642636238090,0.00227369,3089.3,3088.8,0.1294]
[1642636238288,0.00170527,3089.2,3088.8,0.1294]
[1642636238489,5.27e-06,3089.2,3088.8,19.75838]
[1642636238690,0.00113685,3089.1,3089.0,2.50172792]
[1642636238888,0.00113685,3089.1,3089.0,21.7873]
[1642636239089,2.7487233,3091.1,3089.1,2.45]
[1642636239289,2.7487233,3091.1,3089.2,0.1293]
[1642636239491,0.00910004,3091.0,3089.2,0.13043158]
[1642636239689,0.00910004,3091.0,3089.8,0.80881]
[1642636239887,2.2948,3091.2,3089.6,0.1293]
[1642636239888,0.00853162,3090.9,3089.6,0.1293]
[1642636240088,0.00853162,3090.9,3090.1,1.55745972]
[1642636240294,0.8169232,3090.8,3090.1,1.55745972]
[1642636240531,0.8169232,3090.8,3089.2,1.00113158]
[1642636240532,0.16058,3090.7,3090.0,1.16946696]
[1642636240730,0.16058,3090.7,3089.2,0.00113158]
[1642636240731,0.82144291,3090.6,3089.2,0.00113158]
[1642636241033,3.8706433,3090.5,3088.9,0.00283685]
[1642636241232,0.80917,3090.3,3088.9,0.00283685]
[1642636241530,0.00455266,3090.2,3088.9,0.00283685]
[1642636241732,0.81371816,3090.2,3089.5,2.76935232]
[1642636241936,0.00398423,3090.1,3089.5,2.76935232]
[1642636242137,4.10990634,3090.1,3088.9,0.00283685]
[1642636242438,4.10990634,3090.1,3088.6,0.00454212]
[1642636242439,0.00341581,3090.0,3088.6,0.00454212]
[1642636242636,0.3,3089.9,3088.6,0.00454212]
[1642636242838,3.56843185,3089.9,3088.6,0.00454212]
[1642636243039,0.97204546,3089.8,3088.6,0.00454212]
[1642636243235,0.80934,3089.5,3088.9,1.4560514]
[1642636243436,0.00171054,3089.7,3088.9,1.4560514]
[1642636243640,0.00171054,3089.7,3089.0,0.00226843]
[1642636243836,0.00114211,3089.6,3089.0,0.00226843]
[1642636244277,0.8092743,3089.6,3089.4,1.48783442]
[1642636244477,0.7592743,3089.6,3089.0,0.00226843]
[1642636244878,0.7592743,3089.6,3088.9,0.00283685]
[1642636245075,3.99163159,3089.6,3088.9,0.00283685]
[1642636245276,4.05951187,3089.6,3088.9,0.00283685]
[1642636245480,0.79217214,3089.6,3088.6,0.00454212]
[1642636245678,0.79217214,3089.6,3088.9,1.2972659]
[1642636245877,0.7592743,3089.6,3088.9,1.2972659]
[1642636246079,0.7592743,3089.6,3089.0,0.00226843]
[1642636246480,0.80937,3089.5,3089.0,0.00226843]
[1642636246677,1.6188018,3089.4,3089.0,0.00226843]
[1642636246884,1.6188018,3089.4,3088.7,1.53344868]
[1642636247281,1.6188018,3089.4,3088.8,0.00340527]
[1642636247482,0.8093902,3089.5,3088.8,0.00340527]
[1642636248032,0.8093902,3089.5,3089.1,1.40936676]
[1642636248429,0.8093902,3089.5,3089.2,0.00113158]
[1642636249431,0.00114211,3089.6,3089.2,0.00113158]
[1642636249731,0.00114211,3089.6,3089.1,1.31049834]
[1642636249930,0.00170527,3089.5,3089.2,1.36069287]
[1642636250331,0.00113685,3089.4,3089.2,1.36069287]
[1642636250734,0.00397897,3089.9,3089.1,1.31049834]
[1642636251133,0.00341054,3089.8,3089.1,1.31049834]
[1642636251534,3.45508126,3089.9,3089.1,1.31049834]
[1642636251535,2.43084212,3089.7,3089.1,1.31049834]
[1642636251801,0.8092455,3089.6,3088.2,0.20232556]
[1642636251983,4.09876296,3089.6,3088.2,0.20232556]
[1642636252182,0.00170527,3089.5,3088.7,1.37497886]
[1642636252383,0.00170527,3089.5,3088.3,0.00511581]
[1642636252583,0.38913685,3089.4,3088.8,0.00227369]
[1642636252783,0.8094056,3089.2,3088.8,0.00227369]
[1642636252983,0.81836705,3089.2,3088.8,0.00227369]
[1642636253185,0.81836705,3089.2,3087.3,1.72204825]
[1642636253186,3.21616124,3089.1,3088.4,0.00454739]
[1642636253383,3.35945489,3089.1,3088.0,1.26791797]
[1642636253582,3.73882453,3089.3,3088.0,1.26791797]
[1642636253782,3.73882453,3089.3,3088.1,0.00625266]
[1642636253983,1.6189788,3089.1,3088.4,1.4039813]
[1642636254187,0.80948,3088.9,3088.1,0.00625266]
[1642636254383,0.80948,3088.9,3088.5,0.00397896]
[1642636254584,0.97006,3088.9,3088.1,0.00625266]
[1642636254785,0.80948,3088.9,3088.1,0.00625266]
[1642636254984,1.6192666,3088.7,3088.1,0.00625266]
[1642636255184,3.83383299,3088.6,3087.7,0.03136644]
[1642636255384,0.80968,3088.4,3087.7,1.44322546]
[1642636255627,1.27568,3088.4,3087.8,0.00795793]
[1642636256028,1.27568,3088.4,3087.7,1.4335095]
[1642636256227,5.36953265,3088.4,3087.8,0.00795793]
[1642636256428,3.2391802,3088.3,3087.8,0.00795793]
[1642636256728,1.27578,3088.2,3087.6,0.00909477]
[1642636256933,1.31125474,3088.2,3087.6,0.00909477]
[1642636257230,1.2758,3088.2,3087.4,0.01023162]
[1642636257434,0.01227935,3087.9,3087.4,0.01023162]
[1642636257631,20.10688085,3087.8,3087.4,0.01023162]
[1642636257831,0.97055,3087.7,3087.1,0.01193689]
[1642636258031,0.466,3087.6,3087.1,0.01193689]
[1642636258633,1.27598,3087.6,3087.1,0.01193689]
[1642636259287,4.54776278,3087.6,3087.1,0.01193689]
[1642636259478,0.8099863,3087.5,3087.1,0.01193689]
[1642636259678,0.466,3087.4,3087.1,0.01193689]
[1642636259876,0.466,3087.4,3087.1,1.28514909]
[1642636260077,0.466,3087.4,3087.1,0.01193689]
[1642636260277,0.466,3087.4,3087.2,0.01136847]
[1642636260482,0.466,3087.4,3087.1,0.01193689]
[1642636260685,0.8096363,3087.8,3087.1,0.01193689]
[1642636261507,0.80981,3087.7,3087.1,0.01193689]
[1642636261680,0.8096363,3087.8,3087.1,0.01193689]
[1642636262485,0.466,3087.7,3087.1,0.01193689]
[1642636262886,0.01268322,3087.4,3087.0,3.689e-05]